bitfinex-derivatives/quotes_ETHF0:USTF0_20210405
["timestamp","ask_amount","ask_price","bid_price","bid_amount"]
[1617640616206,9.98005927,2118.0,2117.9,2.90695]
[1617640617307,9.95245,2118.0,2117.9,2.90695]
[1617640618307,9.95245,2118.0,2116.2,2.0]
[1617640618510,9.95245,2118.0,2116.4,54.9923]
[1617640618511,67.7055,2117.9,2116.4,54.9923]
[1617640618909,67.7055,2117.9,2117.3,2.90695]
[1617640619108,67.7055,2117.9,2117.3,3.84595]
[1617640619308,67.7055,2117.9,2117.3,2.90695]
[1617640619509,0.02761652,2117.4,2117.3,2.90695]
[1617640619909,0.02761399,2117.6,2117.3,2.90695]
[1617640620310,9.95245,2118.0,2117.3,2.90695]
[1617640620311,0.02761289,2117.7,2117.3,2.90695]
[1617640620509,0.02761208,2117.8,2117.3,2.90695]
[1617640620811,0.02761208,2117.8,2117.7,2.90695]
[1617640621013,9.95245,2118.0,2117.7,3.85065]
[1617640622711,9.95245,2118.0,2117.7,2.90695]
[1617640623713,9.95245,2118.0,2117.7,3.86515]
[1617640628218,10.90185,2118.0,2117.7,3.86515]
[1617640628418,9.95245,2118.0,2117.7,3.86515]
[1617640628621,12.44285,2118.0,2117.7,3.86515]
[1617640629719,9.95245,2118.0,2117.7,3.86515]
[1617640630719,0.02763569,2117.9,2117.7,3.86515]
[1617640631119,8.51548569,2118.0,2117.7,3.86515]
[1617640631519,6.93882787,2118.0,2117.7,3.86515]
[1617640632221,6.78682787,2118.0,2117.7,3.86515]
[1617640632820,5.84292787,2118.0,2117.7,3.86515]
[1617640633021,5.84292787,2118.0,2117.9,78.4746]
[1617640633421,5.42362787,2118.0,2117.9,78.4746]
[1617640633822,5.13102787,2118.0,2117.9,78.4746]
[1617640634221,5.07492787,2118.0,2117.9,78.4746]
[1617640634422,4.84712787,2118.0,2117.9,78.4746]
[1617640634622,4.35072787,2118.0,2117.9,78.4746]
[1617640634823,1.64552787,2118.0,2117.9,78.4746]
[1617640635222,0.83192787,2118.0,2117.9,78.4746]
[1617640635622,0.37428281,2118.4,2117.9,78.4746]
[1617640635822,0.14328281,2118.4,2117.9,78.4746]
[1617640636824,0.20938778,2118.7,2117.9,78.4746]
[1617640637023,0.20938778,2118.7,2118.6,2.90695]
[1617640637224,0.20938778,2118.7,2118.6,3.85885]
[1617640637423,12.43768778,2118.8,2118.6,3.85885]
[1617640637623,11.50048778,2118.8,2118.6,3.85885]
[1617640638024,11.06288778,2118.8,2118.6,3.85885]
[1617640638224,10.75968778,2118.8,2118.6,3.85885]
[1617640638624,9.29758778,2118.8,2118.6,3.85885]
[1617640639224,9.20268778,2118.8,2118.6,3.85885]
[1617640639423,8.59068778,2118.8,2118.6,3.85885]
[1617640640424,8.59068778,2118.8,2118.6,59.84485]
[1617640641226,8.59068778,2118.8,2118.6,3.85885]
[1617640641629,8.59068778,2118.8,2118.6,2.90695]
[1617640642626,8.59068778,2118.8,2118.6,3.86305]
[1617640642827,11.42508778,2118.8,2118.6,0.9561]
[1617640643027,2.90695,2118.7,2118.6,0.9561]
[1617640643827,2.90695,2118.7,2118.3,2.90695]
[1617640644028,3.79194769,2118.7,2118.3,2.90695]
[1617640644830,4.72504769,2118.7,2118.3,3.85275]
[1617640645029,2.90695,2118.4,2118.3,2.90695]
[1617640646028,2.90695,2118.4,2118.3,3.85125]
[1617640646228,3.86435,2118.4,2118.3,3.85125]
[1617640646430,2.90695,2118.4,2118.3,2.90695]
[1617640647629,2.90695,2118.4,2118.3,3.86265]
[1617640647829,2.90695,2118.4,2117.1,0.9577]
[1617640648029,2.90695,2118.4,2116.8,2.0]
[1617640648430,4.90695,2118.4,2116.7,64.0513]
[1617640648830,5.79174428,2118.4,2116.7,64.0513]
[1617640649029,2.88479428,2118.4,2117.6,2.90695]
[1617640651032,2.90695,2117.7,2117.6,2.90695]
[1617640652033,5.72785,2117.7,2117.6,2.90695]
[1617640653034,5.72785,2117.7,2114.5,0.9392]
[1617640653233,62.5886,2117.3,2115.5,77.2996]
[1617640653634,62.5886,2117.3,2115.8,5.098]
[1617640653835,62.5886,2117.3,2115.5,77.2996]
[1617640654639,63.47440119,2117.3,2115.5,77.2996]
[1617640654936,2.90695,2116.3,2116.0,2.90695]
[1617640655138,5.64095,2116.3,2116.0,2.90695]
[1617640657439,5.64095,2116.3,2114.5,62.9058]
[1617640657639,5.64095,2116.3,2114.5,60.9058]
[1617640657840,5.64095,2116.3,2114.5,63.4768]
[1617640659040,2.734,2116.3,2115.3,2.90695]
[1617640659442,4.734,2116.3,2115.3,2.90695]
[1617640661044,2.90695,2115.4,2115.3,2.90695]
[1617640662244,53.8547,2116.4,2115.3,2.90695]
[1617640663047,53.8547,2116.4,2116.0,2.90695]
[1617640663446,53.8547,2116.4,2114.8,0.9595]
[1617640663645,53.8547,2116.4,2114.5,65.4921]
[1617640664047,2.0,2116.3,2114.5,65.4921]
[1617640664247,4.7038,2116.3,2114.5,65.4921]
[1617640664647,4.7038,2116.3,2114.5,66.4362]
[1617640665147,4.7038,2116.3,2115.7,2.90695]
[1617640665347,2.7038,2116.3,2115.7,2.90695]
[1617640667050,2.90695,2115.8,2115.7,2.90695]
[1617640667249,4.69365,2115.8,2115.7,2.90695]
[1617640667451,4.69365,2115.8,2114.5,64.4362]
[1617640667651,4.69365,2115.8,2114.5,9.5676]
[1617640667849,71.8533,2115.5,2114.5,9.5676]
[1617640669050,71.8533,2115.5,2115.4,2.90695]
[1617640669651,71.8533,2115.5,2115.4,3.84655]
[1617640670052,71.8533,2115.5,2115.4,2.90695]
[1617640670251,2.90695,2115.8,2115.4,2.90695]
[1617640671150,2.90695,2115.8,2115.7,2.90695]
[1617640673153,2.90695,2115.8,2115.4,2.90695]
[1617640673353,4.71995,2115.8,2115.4,2.90695]
[1617640673553,4.71995,2115.8,2114.5,9.5676]
[1617640673752,64.2023,2115.3,2114.5,7.669]
[1617640673952,66.7377,2115.3,2113.7,66.9766]
[1617640674554,66.7377,2115.3,2113.8,2.0]
[1617640675155,66.7377,2115.3,2115.0,2.90695]
[1617640676154,2.5354,2115.3,2115.0,2.90695]
[1617640676756,71.4012,2115.7,2115.0,2.90695]
[1617640677156,1.813,2115.8,2115.4,2.90695]
[1617640677357,1.813,2115.8,2115.4,3.85165]
[1617640677556,1.813,2115.8,2114.5,2.571]
[1617640677758,73.0833,2115.5,2114.5,2.571]
[1617640679056,73.0833,2115.5,2114.5,3.5302]
[1617640679257,73.0833,2115.5,2115.0,2.90695]
[1617640679456,73.0833,2115.5,2114.5,3.5302]
[1617640679861,1.813,2115.8,2114.5,0.9592]
[1617640680057,0.8839064,2115.9,2114.5,0.9592]
[1617640680257,66.7332,2114.8,2114.5,0.9592]
[1617640680460,69.3211,2114.8,2114.5,0.9592]
[1617640680657,69.3211,2114.8,2113.8,0.9447]
[1617640680863,69.3211,2114.8,2113.2,3.5203]
[1617640681059,69.3211,2114.8,2113.2,2.571]
[1617640681259,2.0,2114.7,2113.2,2.571]
[1617640682256,2.0,2114.7,2113.2,3.505]
[1617640682456,2.0,2114.7,2113.2,0.934]
[1617640682655,2.0,2114.7,2112.6,0.9597]
[1617640683256,2.9578,2114.7,2113.3,2.90695]
[1617640683456,15.597,2114.7,2113.3,2.90695]
[1617640683856,45.597,2114.7,2113.3,2.90695]
[1617640684056,45.617,2114.7,2113.3,3.86045]
[1617640684457,45.617,2114.7,2113.3,0.9535]
[1617640684658,45.597,2114.7,2113.3,0.9535]
[1617640684859,45.617,2114.7,2112.6,0.9435]
[1617640685060,45.617,2114.7,2112.0,2.0]
[1617640685259,60.239,2113.8,2112.9,2.90695]
[1617640685459,64.3247,2113.8,2112.9,2.90695]
[1617640686260,64.3247,2113.8,2112.9,3.86545]
[1617640686461,64.3247,2113.8,2112.9,2.90695]
[1617640686661,64.3247,2113.8,2112.0,2.0]
[1617640687263,64.3247,2113.8,2112.5,2.90695]
[1617640688861,62.3247,2113.8,2112.5,2.90695]
[1617640689261,62.3247,2113.8,2113.2,2.90695]
[1617640689661,60.8971,2113.8,2113.2,2.90695]
[1617640689860,56.6842,2113.8,2113.2,2.90695]
[1617640690061,2.0,2114.6,2113.2,2.90695]
[1617640690262,67.3421,2114.4,2113.2,2.90695]
[1617640690868,67.3421,2114.4,2113.2,5.47795]
[1617640691270,67.3421,2114.4,2114.2,2.90695]
[1617640691466,12.6392,2114.7,2114.2,2.90695]
[1617640692764,13.5905,2114.7,2114.2,3.84535]
[1617640693165,2.90695,2114.3,2114.2,3.84535]
[1617640693367,5.76135,2114.3,2114.2,3.84535]
[1617640693565,5.76135,2114.3,2114.2,0.9384]
[1617640694767,4.81885,2114.3,2112.7,0.9363]
[1617640694966,56.4762,2114.2,2112.7,0.9363]
[1617640695168,56.4762,2114.2,2112.6,56.8399]
[1617640695367,56.4762,2114.2,2113.4,2.90695]
[1617640696467,57.4255,2114.2,2113.4,2.90695]
[1617640696668,56.4762,2114.2,2113.4,2.90695]
[1617640697268,2.90695,2113.5,2113.4,2.90695]
[1617640697471,5.66485,2113.5,2113.4,2.90695]
[1617640698070,2.7579,2113.5,2113.4,2.90695]
[1617640698471,56.4762,2114.2,2113.4,2.90695]
[1617640699272,2.90695,2113.7,2113.4,2.90695]
[1617640699472,5.25145,2113.7,2113.4,2.90695]
[1617640703073,5.25145,2113.7,2113.4,3.84255]
[1617640703676,5.25145,2113.7,2113.4,2.90695]
[1617640705774,2.90695,2113.7,2113.4,3.84835]
[1617640705975,2.90695,2113.7,2113.4,2.90695]
[1617640707278,2.90695,2113.7,2113.6,64.5711]
[1617640707479,68.6483,2115.1,2113.6,64.5711]
[1617640707879,68.6483,2115.1,2113.6,66.9442]
[1617640709280,68.6483,2115.1,2114.3,2.90695]
[1617640710683,68.6483,2115.1,2114.3,3.84325]
[1617640710886,68.6483,2115.1,2114.3,2.90695]
[1617640711285,68.6483,2115.1,2114.9,2.90695]
[1617640711488,16.09095,2115.2,2114.9,2.90695]
[1617640713483,16.09095,2115.2,2114.9,3.85295]
[1617640714488,16.09095,2115.2,2114.9,2.90695]
[1617640714690,12.09305,2114.6,2114.4,70.9669]
[1617640715088,12.09305,2114.6,2114.0,3.5158]
[1617640715490,12.09305,2114.6,2114.5,2.90695]
[1617640716689,12.09305,2114.6,2114.5,3.86045]
[1617640717690,11.65445,2114.6,2114.5,3.86045]
[1617640718091,10.46525,2114.6,2114.5,3.86045]
[1617640718290,9.68985,2114.6,2114.5,3.86045]
[1617640718490,10.63505,2114.6,2114.5,3.86045]
[1617640718690,9.68985,2114.6,2114.5,3.86045]
[1617640720191,9.68985,2114.6,2114.5,5.86045]
[1617640720391,9.59085,2114.6,2114.5,5.86045]
[1617640721291,9.59085,2114.6,2114.5,3.86045]
[1617640721894,9.59085,2114.6,2114.5,2.90695]
[1617640723295,12.35265,2114.6,2114.5,2.90695]
[1617640723496,15.2596,2114.6,2114.5,2.90695]
[1617640724400,15.2596,2114.6,2114.0,2.571]
[1617640725498,12.35265,2114.6,2114.2,2.90695]
[1617640726097,12.35265,2114.6,2114.2,3.84585]
[1617640726798,12.35265,2114.6,2114.2,2.90695]
[1617640727399,2.90695,2114.3,2114.2,2.90695]
[1617640727999,2.90695,2114.3,2114.2,3.85745]
[1617640728199,2.90695,2114.3,2114.2,2.90695]
[1617640729603,2.90695,2114.3,2114.0,2.571]
[1617640729800,2.90695,2114.3,2113.5,69.1882]
[1617640731503,12.35265,2114.6,2113.9,2.90695]
[1617640731705,12.35265,2114.6,2113.9,3.84635]
[1617640733305,12.35265,2114.6,2113.9,2.90695]
[1617640733505,2.90695,2114.0,2113.9,2.90695]
[1617640734007,4.68035,2114.0,2113.9,2.90695]
[1617640734407,4.68035,2114.0,2113.9,3.86515]
[1617640734809,1.7734,2114.0,2113.9,3.86515]
[1617640735209,1.7734,2114.0,2113.9,2.90695]
[1617640736811,74.98085,2114.1,2113.9,2.90695]
[1617640737212,2.90695,2114.1,2113.9,2.90695]
[1617640737411,2.90695,2114.1,2113.9,3.84365]
[1617640737812,2.90695,2114.1,2113.9,2.90695]
[1617640738412,9.59085,2114.6,2113.9,2.90695]
[1617640738613,9.59085,2114.6,2113.9,2.88695]
[1617640738813,9.59085,2114.6,2113.9,3.82975]
[1617640739016,9.59085,2114.6,2113.6,55.8161]
[1617640739216,11.72795,2114.6,2113.6,55.8161]
[1617640739614,2.90695,2113.7,2113.6,58.72305]
[1617640739817,5.32105,2113.7,2113.6,58.72305]
[1617640740215,5.32105,2113.7,2113.6,2.90695]
[1617640741519,2.90695,2113.7,2113.6,2.90695]
[1617640743520,0.1381781,2114.4,2113.6,2.90695]
[1617640743719,2.90695,2114.2,2113.6,2.90695]
[1617640744119,2.34605,2114.2,2113.6,2.90695]
[1617640744320,1.62315,2114.2,2113.6,2.90695]
[1617640745522,1.39875,2114.2,2113.6,2.90695]
[1617640745719,0.68585,2114.2,2114.1,2.90695]
[1617640745921,68.83935,2114.6,2114.1,2.90695]
[1617640747623,68.83935,2114.6,2114.4,2.90695]
[1617640749524,9.59085,2114.6,2114.4,2.90695]
[1617640749725,2.90695,2114.5,2114.4,2.90695]
[1617640751925,9.59085,2114.6,2114.4,2.90695]
[1617640753734,12.4978,2114.6,2114.4,2.90695]
[1617640755035,0.66425394,2114.5,2114.4,2.90695]
[1617640755835,13.16170886,2114.6,2114.4,2.90695]
[1617640758542,0.66372306,2114.5,2114.4,2.90695]
[1617640759342,12.4978,2114.6,2114.4,2.90695]
[1617640759742,0.66373394,2114.5,2114.4,2.90695]
[1617640763750,2.68703394,2114.5,2114.4,2.90695]
[1617640765053,0.66373394,2114.5,2114.4,2.90695]
[1617640765952,13.38396382,2114.6,2114.4,2.90695]
[1617640766354,1.10987973,2114.5,2114.4,2.90695]
[1617640767058,2.22812592,2114.5,2114.4,2.90695]
[1617640767357,5.03152592,2114.5,2114.4,2.90695]
[1617640768360,2.22812592,2114.5,2114.4,2.90695]
[1617640768760,1.11824619,2114.5,2114.4,2.90695]
[1617640770461,2.00558653,2114.5,2114.4,2.90695]
[1617640770661,1.05578799,2114.5,2114.4,2.90695]
[1617640770863,0.65618799,2114.5,2114.4,2.90695]
[1617640771266,12.4978,2114.6,2114.4,2.90695]
[1617640778278,13.4446,2114.6,2114.4,2.90695]
[1617640778578,12.4978,2114.6,2114.4,2.90695]
[1617640782977,13.60540688,2114.6,2114.4,2.90695]
[1617640783780,1.10741877,2114.5,2114.4,2.90695]
[1617640784579,13.60525676,2114.6,2114.4,2.90695]
[1617640784981,12.67075676,2114.6,2114.4,2.90695]
[1617640785482,11.5633,2114.6,2114.4,2.90695]
[1617640786984,10.1546,2114.6,2114.4,2.90695]
[1617640787985,9.8938,2114.6,2114.4,2.90695]
[1617640792894,10.8428,2114.6,2114.4,2.90695]
[1617640793297,0.66433411,2114.5,2114.4,2.90695]
[1617640793797,1.93483411,2114.5,2114.4,2.90695]
[1617640793998,1.7453,2114.5,2114.4,2.90695]
[1617640794196,1.623,2114.5,2114.4,2.90695]
[1617640794697,1.3482,2114.5,2114.4,4.90695]
[1617640794898,6.98685,2114.6,2114.5,67.35814622]
[1617640795097,6.98685,2114.6,2114.5,70.31514622]
[1617640795298,5.52915,2114.6,2114.5,70.31514622]
[1617640795700,2.48765,2114.6,2114.5,70.31514622]
[1617640796098,0.89275,2114.6,2114.5,70.31514622]
[1617640796798,5e-05,2114.6,2114.5,70.31514622]
[1617640797001,1.10930184,2115.2,2114.5,70.31514622]
[1617640797201,0.44367099,2114.6,2114.5,70.31514622]
[1617640797401,0.27247099,2114.6,2114.5,70.31514622]
[1617640797600,1.10930184,2115.2,2114.5,70.31514622]
[1617640798002,1.10930184,2115.2,2115.1,2.90695]
[1617640798202,0.63900184,2115.2,2115.1,2.90695]
[1617640800206,0.63900184,2115.2,2115.1,3.86375]
[1617640800806,4.84816244,2115.3,2115.1,3.86375]
[1617640801207,1.94133202,2115.2,2115.1,3.86375]
[1617640801407,2.3199,2115.2,2115.1,3.86375]
[1617640801806,2.3199,2115.2,2115.1,0.9568]
[1617640802005,2.3199,2115.2,2114.6,2.90695]
[1617640802207,5.09193548,2115.2,2114.6,2.90695]
[1617640802606,1.94137365,2114.9,2114.6,2.90695]
[1617640803206,1.23307365,2114.9,2114.6,2.90695]
[1617640803711,7.365e-05,2114.9,2114.6,2.90695]
[1617640803909,2.90695,2114.7,2114.6,2.90695]
[1617640804112,4.99325,2114.7,2114.6,2.90695]
[1617640804310,64.92685,2114.7,2113.9,0.948]
[1617640804911,0.8874049,2114.4,2113.9,0.948]
[1617640805919,0.8874049,2114.4,2114.3,2.90695]
[1617640806319,0.83854588,2114.6,2114.3,2.90695]
[1617640807412,0.88744896,2114.4,2114.3,2.90695]
[1617640808611,2.6208704,2115.0,2114.3,2.90695]
[1617640808811,2.6208704,2115.0,2114.4,70.7772]
[1617640809011,3.88471166,2115.2,2114.4,70.7772]
[1617640809012,3.88987599,2115.3,2114.4,70.7772]
[1617640809413,5.00047585,2115.5,2114.4,70.7772]
[1617640809414,3.89205519,2115.5,2114.4,70.7772]
[1617640809612,3.89190941,2115.4,2114.4,70.7772]
[1617640810012,3.8920801,2115.5,2115.3,2.90695]
[1617640812115,2.90695,2115.4,2115.3,2.90695]
[1617640812514,2.90695,2115.4,2114.4,70.7772]
[1617640812713,6.79924954,2115.4,2113.6,2.0]
[1617640812914,55.298,2115.1,2113.6,2.0]
[1617640813113,57.415,2115.1,2113.6,2.0]
[1617640813314,57.415,2115.1,2113.5,2.571]
[1617640813514,0.05553465,2113.7,2113.5,2.571]
[1617640813915,0.05552662,2113.6,2113.5,2.571]
[1617640814114,2.96247662,2113.6,2113.5,5.45795]
[1617640814314,2.3423,2113.7,2113.5,5.45795]
[1617640814315,2.61985094,2113.7,2113.5,5.45795]
[1617640814515,2.61985094,2113.7,2113.5,2.90695]
[1617640814714,0.27760595,2113.6,2113.5,2.90695]
[1617640815516,0.27773385,2113.7,2113.5,2.90695]
[1617640818021,0.27774607,2113.8,2113.5,2.90695]
[1617640818822,0.05554936,2113.6,2113.5,2.90695]
[1617640819624,0.05554936,2113.6,2113.5,4.90695]
[1617640819828,0.05556952,2113.7,2113.5,4.90695]
[1617640820027,0.05557539,2113.8,2113.5,4.90695]
[1617640822222,0.05555473,2113.9,2113.5,4.90695]
[1617640824023,0.05555961,2114.0,2113.9,70.9635]
[1617640824225,0.27782979,2114.3,2114.0,1.94444039]
[1617640824423,0.27782979,2114.3,2114.0,4.38694039]
[1617640825028,0.27790932,2114.4,2114.0,4.38694039]
[1617640825327,0.27752376,2114.6,2114.0,4.38694039]
[1617640826128,0.27752376,2114.6,2114.5,2.90695]
[1617640826327,2.90695,2115.3,2114.5,5.80139039]
[1617640826628,2.22788101,2115.6,2115.0,73.3565]
[1617640827027,1.94573072,2115.8,2115.0,73.3565]
[1617640827028,1.10982064,2115.8,2115.0,73.3565]
[1617640828028,1.10982064,2115.8,2115.7,2.90695]
[1617640828629,1.10982064,2115.8,2115.7,2.89695]
[1617640828829,4.85345736,2115.9,2115.7,2.89695]
[1617640829230,2.90695,2115.9,2115.7,2.89695]
[1617640829632,4.85369562,2115.9,2115.7,2.88695]
[1617640829831,71.9796,2115.7,2114.1,64.50194039]
[1617640830031,71.9796,2115.7,2115.2,2.90695]
[1617640830432,1.11015459,2115.3,2115.2,2.90695]
[1617640830632,2.85355459,2115.3,2115.2,2.90695]
[1617640830830,2.81715459,2115.3,2115.2,2.90695]
[1617640831031,2.13485459,2115.3,2115.2,2.90695]
[1617640831632,0.39145459,2115.3,2115.2,2.90695]
[1617640831834,7.5351228,2115.6,2115.2,2.90695]
[1617640832233,2.90695,2115.3,2115.2,3.84295]
[1617640832435,2.90695,2115.3,2115.2,2.90695]
[1617640832834,7.5351228,2115.6,2115.2,2.90695]
[1617640833547,7.5351228,2115.6,2115.2,5.63305]
[1617640833742,1.94708578,2115.8,2115.2,5.63305]
[1617640834233,1.94708578,2115.8,2115.7,2.90695]
[1617640834433,1.94805759,2115.9,2115.7,5.13045]
[1617640835235,1.24065759,2115.9,2115.7,5.13045]
[1617640836337,2.90695,2116.0,2115.7,5.13045]
[1617640836537,2.90695,2116.0,2115.7,2.90695]
[1617640838340,1.11760167,2116.2,2115.7,4.89235]
[1617640838941,0.88762337,2115.8,2115.7,4.89235]
[1617640840344,0.88781641,2115.9,2115.7,4.89235]
[1617640843747,0.88746967,2116.0,2115.7,4.89235]
[1617640844650,0.88746967,2116.0,2115.7,2.90695]
[1617640844850,0.88758989,2115.9,2115.7,2.90695]
[1617640845952,0.8874344,2115.8,2115.7,2.90695]
[1617640847352,5.58762979,2116.2,2115.7,2.90695]
[1617640847353,0.88645141,2116.0,2115.7,2.90695]
[1617640848556,0.88645141,2116.0,2115.7,5.33245]
[1617640848953,0.8867735,2116.1,2115.7,5.33245]
[1617640850353,0.8867735,2116.1,2116.0,2.90695]
[1617640850753,1.72487987,2116.1,2116.0,2.90695]
[1617640851553,1.72487987,2116.1,2116.0,3.84995]
[1617640851754,0.8867735,2116.1,2116.0,3.84995]
[1617640852154,0.83802638,2116.1,2116.0,2.90695]
[1617640852554,0.16452638,2116.1,2116.0,2.90695]
[1617640853155,0.8870815,2116.4,2116.0,2.90695]
[1617640853855,0.88690342,2116.5,2116.0,2.90695]
[1617640854255,0.88690342,2116.5,2116.4,2.90695]
[1617640854455,0.88690342,2116.5,2116.4,64.89585]
[1617640854855,3.42e-06,2116.5,2116.4,64.89585]
[1617640855156,0.83787464,2116.5,2116.4,64.89585]
[1617640855355,2.57588874,2116.8,2116.4,65.84885]
[1617640855555,2.09658874,2116.8,2116.4,65.84885]
[1617640855762,2.09658874,2116.8,2116.4,64.89585]
[1617640856158,0.66528128,2116.5,2116.4,64.89585]
[1617640857759,0.66528128,2116.5,2116.4,65.84785]
[1617640858160,0.98787464,2116.8,2116.4,65.84785]
[1617640858359,0.98787464,2116.8,2116.7,2.90695]
[1617640859860,1.94027464,2116.8,2116.7,2.90695]
[1617640860059,0.98787464,2116.8,2116.7,2.90695]
[1617640861059,0.29087464,2116.8,2116.7,2.90695]
[1617640861461,0.29087464,2116.8,2116.7,3.83975]
[1617640862061,0.06717464,2116.8,2116.7,3.83975]
[1617640862261,0.06717464,2116.8,2116.7,2.90695]
[1617640862863,1.3656404,2116.9,2116.7,2.90695]
[1617640863264,0.66339091,2116.8,2116.7,2.90695]
[1617640863463,0.66339091,2116.8,2115.6,75.4814]
[1617640863664,0.9537,2116.8,2115.6,75.4814]
[1617640864069,0.01381678,2115.9,2115.6,75.4814]
[1617640864466,0.66320536,2116.6,2115.8,2.90695]
[1617640864467,0.66297773,2116.5,2115.8,2.90695]
[1617640865867,3.56991541,2116.6,2115.8,2.90695]
[1617640866467,3.56991541,2116.6,2116.5,2.90695]
[1617640867168,0.66296541,2116.6,2116.5,2.90695]
[1617640867367,0.66304993,2116.7,2116.5,2.90695]
[1617640867567,0.66304993,2116.7,2116.5,3.84745]
[1617640867767,0.66304993,2116.7,2116.5,2.90695]
[1617640868168,0.66334478,2116.9,2116.5,2.90695]
[1617640868369,2.0,2116.9,2116.8,2.90695]
[1617640870972,0.7116,2116.9,2116.8,2.90695]
[1617640871173,0.5945,2116.9,2116.8,2.90695]
[1617640871373,1.30785,2117.1,2116.8,2.90695]
[1617640872776,0.03555,2117.1,2116.8,2.90695]
[1617640873178,2.0,2117.2,2116.8,2.90695]
[1617640874376,2.0,2117.2,2117.1,2.90695]
[1617640875177,0.66396873,2117.4,2117.1,2.90695]
[1617640875377,0.6639883,2117.5,2117.1,2.90695]
[1617640875576,0.6639883,2117.5,2117.1,3.85105]
[1617640875777,0.66398927,2117.6,2117.1,2.90695]
[1617640876377,0.66398927,2117.6,2117.5,2.90695]
[1617640877182,2.90695,2117.9,2117.5,2.90695]
[1617640878480,2.90695,2117.9,2117.8,2.90695]
[1617640878782,3.56929649,2117.9,2117.8,2.90695]
[1617640879081,3.56929649,2117.9,2116.5,67.2196]
[1617640879282,5.83259649,2117.9,2116.5,67.2196]
[1617640879683,0.013796,2117.1,2116.5,67.2196]
[1617640879881,0.013796,2117.1,2116.5,0.9398]
[1617640880481,0.013796,2117.1,2117.0,2.90695]
[1617640880682,0.02759098,2117.1,2117.0,2.90695]
[1617640882082,0.01379636,2117.1,2117.0,2.90695]
[1617640883785,0.01380024,2117.2,2117.0,3.84765]
[1617640883983,0.01380024,2117.2,2117.0,2.90695]
[1617640884586,0.01380367,2117.3,2117.0,2.90695]
[1617640884987,0.01380363,2117.4,2117.0,3.84965]
[1617640885287,0.013802,2117.3,2117.0,3.84965]
[1617640885687,0.013805,2117.4,2117.0,3.84965]
[1617640885887,0.013805,2117.4,2117.0,2.90695]
[1617640886585,0.013805,2117.4,2117.3,2.90695]
[1617640888995,0.01378842,2117.6,2117.3,2.90695]
[1617640889593,0.01378887,2117.5,2117.3,2.90695]
[1617640891494,0.02757773,2117.6,2117.3,2.90695]
[1617640891495,0.01378865,2117.6,2117.3,2.90695]
[1617640893598,0.01379181,2117.5,2117.3,2.90695]
[1617640893797,0.01379272,2117.4,2117.3,2.90695]
[1617640894599,2.93452918,2117.4,2117.3,2.90695]
[1617640895001,2.90695,2117.4,2117.3,2.90695]
[1617640895600,2.90695,2117.4,2117.3,3.86225]
[1617640895800,2.90695,2117.4,2117.3,2.90695]
[1617640896902,2.93453708,2117.4,2117.3,2.90695]
[1617640897303,0.02758708,2117.4,2117.3,2.90695]
[1617640897705,0.02758708,2117.4,2117.3,3.84015]
[1617640897903,0.96478708,2117.4,2117.3,3.84015]
[1617640898103,15.96478708,2117.4,2117.3,3.84015]
[1617640898504,15.9372,2117.4,2117.3,3.84015]
[1617640899106,15.0,2117.4,2117.3,3.84015]
[1617640899507,15.0,2117.4,2117.3,2.90695]
[1617640899707,13.8072,2117.4,2117.3,2.90695]
[1617640900107,12.8256,2117.4,2117.3,2.90695]
[1617640900508,12.3586,2117.4,2117.3,2.90695]
[1617640902208,12.2386,2117.4,2117.3,2.90695]
[1617640902811,11.4704,2117.4,2117.3,2.90695]
[1617640906314,11.3842,2117.4,2117.3,2.90695]
[1617640910118,11.0988,2117.4,2117.3,2.90695]
[1617640910318,10.628,2117.4,2117.3,2.90695]
[1617640913122,5.8885,2117.4,2117.3,2.90695]
[1617640916326,5.8885,2117.4,2115.2,2.0]
[1617640916526,60.2951,2116.7,2115.2,2.0]
[1617640916728,60.2951,2116.7,2116.6,2.90695]
[1617640916729,63.0312,2116.7,2116.6,2.90695]
[1617640917428,63.04502102,2116.7,2116.6,2.90695]
[1617640917829,63.04502102,2116.7,2116.6,3.85035]
[1617640918229,63.05884473,2116.7,2116.6,3.85035]
[1617640918427,60.32274473,2116.7,2116.6,3.85035]
[1617640918630,63.2158722,2116.7,2116.6,2.90695]
[1617640920531,2.93459529,2116.7,2116.6,2.90695]
[1617640921131,2.93459529,2116.7,2115.8,64.0823]
[1617640921330,5.13479529,2116.7,2115.8,64.0823]
[1617640921730,0.01382324,2116.5,2115.8,64.0823]
[1617640922630,1.98682324,2116.5,2116.1,2.90695]
[1617640922830,0.0138333,2116.4,2116.1,2.90695]
[1617640924733,2.9207833,2116.4,2116.1,2.90695]
[1617640925835,0.01383335,2116.3,2116.1,2.90695]
[1617640926235,0.02769757,2116.2,2116.1,2.90695]
[1617640927035,2.90695,2116.4,2116.1,2.90695]
[1617640928139,0.02769899,2116.2,2116.1,2.90695]
[1617640929440,0.02769899,2116.2,2116.1,3.84635]
[1617640930040,0.02769899,2116.2,2116.1,2.90695]
[1617640930440,9.899e-05,2116.2,2116.1,2.90695]
[1617640930841,2.90695,2116.4,2116.1,2.90695]
[1617640933743,2.90695,2116.4,2116.1,3.85715]
[1617640933944,2.90695,2116.4,2116.1,2.90695]
[1617640936049,56.55075,2116.4,2116.1,2.90695]
[1617640936250,56.99406503,2116.4,2114.9,57.5256]
[1617640936453,59.33216503,2116.4,2114.9,57.5256]
[1617640936852,56.42521503,2116.4,2115.4,2.90695]
[1617640937053,0.01385581,2115.5,2115.4,2.90695]
[1617640937254,76.67225581,2115.5,2115.4,2.90695]
[1617640937454,76.6584,2115.5,2114.5,0.9341]
[1617640937856,0.01387782,2115.0,2114.5,0.9141]
[1617640938753,76.6584,2115.5,2114.5,0.9141]